fUSD/lending_fUSD_20250611
["ID","MTS","AMOUNT","RATE_DAILY","PERIOD"]
[365444764,1749677447963,-490.0,0.00019178,2]
[365444765,1749677447973,-480.0,0.00019178,2]
[365444766,1749677447982,-490.0,0.00019178,2]
[365444767,1749677447991,-490.0,0.00019178,2]
[365444768,1749677448001,-480.0,0.00019178,2]
[365444769,1749677448011,-1949.11,0.00019178,2]
[365444770,1749677448024,-490.0,0.00019178,2]
[365444771,1749677448033,-265.36919536,0.00019178,2]
[365444772,1749677448042,-480.0,0.00019178,2]
[365444773,1749677448050,-412.13539499,0.00019178,2]
[365444774,1749677448061,-490.0,0.00019178,2]
[365444775,1749677448070,-2801.87,0.00019178,2]
[365444776,1749677448079,-490.0,0.00019178,2]
[365444777,1749677448088,-490.0,0.00019178,2]
[365444778,1749677448098,-199.738533,0.00019178,2]
[365444779,1749677448107,-490.0,0.00019178,2]
[365444780,1749677448116,-709.11,0.00019178,2]
[365444781,1749677448125,-490.0,0.00019178,2]
[365444782,1749677448134,-5478.9,0.00019178,2]
[365444783,1749677448143,-490.0,0.00019178,2]
[365444784,1749677448152,-490.0,0.00019178,2]
[365444785,1749677448162,-562.04,0.00019178,2]
[365444786,1749677448171,-500.0,0.00019178,2]
[365444787,1749677448180,-500.0,0.00019178,2]
[365444788,1749677448191,-490.0,0.00019178,2]
[365444789,1749677448200,-480.0,0.00019178,2]
[365444790,1749677448209,-5122.71,0.00019178,2]
[365444791,1749677448219,-480.0,0.00019178,2]
[365444792,1749677448228,-490.0,0.00019178,2]
[365444793,1749677448237,-490.0,0.00019178,2]
[365444794,1749677448246,-490.0,0.00019178,2]
[365444795,1749677448255,-203.89487434,0.00019178,2]
[365444796,1749677448266,-490.0,0.00019178,2]
[365444797,1749677448276,-2000.0,0.00019178,2]
[365444798,1749677448285,-480.0,0.00019178,2]
[365444799,1749677448295,-603.01,0.00019178,2]
[365444800,1749677448304,-490.0,0.00019178,2]
[365444801,1749677448314,-559.93,0.00019178,2]
[365444802,1749677448323,-490.0,0.00019178,2]
[365444803,1749677448333,-490.0,0.00019178,2]
[365444804,1749677448343,-490.0,0.00019178,2]
[365444805,1749677448352,-490.0,0.00019178,2]
[365444806,1749677448362,-490.0,0.00019178,2]
[365444807,1749677448372,-490.0,0.00019178,2]
[365444808,1749677448381,-1798.59,0.00019178,2]
[365444809,1749677448391,-871.01,0.00019178,2]
[365444810,1749677448400,-406.18391061,0.00019178,2]
[365444811,1749677448409,-504.12,0.00019178,2]
[365444812,1749677448419,-500.0,0.00019178,2]
[365444813,1749677448428,-162.5654703,0.00019178,2]
[365444814,1749677448438,-490.0,0.00019178,2]
[365444815,1749677448447,-490.0,0.00019178,2]
[365444816,1749677448457,-490.0,0.00019178,2]
[365444817,1749677448467,-490.0,0.00019178,2]
[365444818,1749677448476,-490.0,0.00019178,2]
[365444819,1749677448486,-620.38,0.00019178,2]
[365444820,1749677448495,-490.0,0.00019178,2]
[365444821,1749677448505,-480.0,0.00019178,2]
[365444822,1749677448516,-490.0,0.00019178,2]
[365444823,1749677448525,-490.0,0.00019178,2]
[365444824,1749677448536,-490.0,0.00019178,2]
[365444825,1749677448545,-503.99791422,0.00019178,2]
[365444826,1749677448555,-490.0,0.00019178,2]
[365444827,1749677448564,-857.78,0.00019178,2]
[365444828,1749677448574,-691.34,0.00019178,2]
[365444829,1749677448583,-490.0,0.00019178,2]
[365444830,1749677448593,-490.0,0.00019178,2]
[365444831,1749677448603,-490.0,0.00019178,2]
[365444832,1749677448612,-490.0,0.00019178,2]
[365444833,1749677448622,-490.0,0.00019178,2]
[365444834,1749677448632,-1245.409546,0.00019178,2]
[365444835,1749677448642,-490.0,0.00019178,2]
[365444836,1749677448651,-490.0,0.00019178,2]
[365444837,1749677448661,-490.0,0.00019178,2]
[365444838,1749677448671,-490.0,0.00019178,2]
[365444839,1749677448680,-818.16,0.00019178,2]
[365444840,1749677448690,-158.245676,0.00019178,2]
[365444841,1749677448699,-490.0,0.00019178,2]
[365444842,1749677448708,-681.39,0.00019178,2]
[365444843,1749677448718,-480.0,0.00019178,2]
[365444844,1749677448728,-490.0,0.00019178,2]
[365444845,1749677448737,-921.2,0.00019178,2]
[365444846,1749677448747,-490.0,0.00019178,2]
[365444847,1749677448757,-490.0,0.00019178,2]
[365444848,1749677448768,-161.867732,0.00019178,2]
[365444849,1749677448778,-490.0,0.00019178,2]
[365444850,1749677448788,-480.0,0.00019178,2]
[365444851,1749677448798,-490.0,0.00019178,2]
[365444852,1749677448807,-417.9416168,0.00019178,2]
[365444853,1749677448817,-480.0,0.00019178,2]
[365444854,1749677448826,-669.09,0.00019178,2]
[365444855,1749677448837,-490.0,0.00019178,2]
[365444856,1749677448847,-490.0,0.00019178,2]
[365444857,1749677448857,-490.0,0.00019178,2]
[365444858,1749677448866,-490.0,0.00019178,2]
[365444859,1749677448876,-490.0,0.00019178,2]
[365444860,1749677448885,-490.0,0.00019178,2]
[365444861,1749677448895,-460.0,0.00019178,2]
[365444862,1749677448904,-490.0,0.00019178,2]
[365444863,1749677448914,-602.36,0.00019178,2]
[365444864,1749677448923,-2576.72,0.00019178,2]
[365444865,1749677448933,-151.0,0.00019178,2]
[365444866,1749677448942,-155.12813262,0.00019178,2]
[365444867,1749677448952,-300.15,0.00019178,2]
[365444868,1749677448961,-250.64495419,0.00019195,2]
[365444869,1749677448970,-1300.0,0.000192,7]
[365444870,1749677448979,-8748.99064403,0.00019206,2]
[365444871,1749677448988,-219.23291504,0.0001921,2]
[365444872,1749677448997,-500.0,0.0001922,7]
[365444873,1749677449007,-637.23,0.0001922,7]
[365444874,1749677449020,-500.0,0.0001922,7]
[365444875,1749677449030,-500.0,0.0001922,7]
[365444876,1749677449039,-500.0,0.0001922,7]
[365444877,1749677449049,-500.0,0.0001922,7]
[365444878,1749677449059,-500.0,0.0001922,7]
[365444879,1749677449068,-500.0,0.0001922,7]
[365444880,1749677449077,-500.0,0.0001922,7]
[365444881,1749677449086,-162.07,0.0001922,7]
[365444882,1749677449097,-219.23291504,0.00019245,2]
[365444883,1749677449108,-218.0,0.00019247,2]
[365444884,1749677449117,-219.23291504,0.00019279,2]
[365444885,1749677449127,-1700.0,0.000193,7]
[365444886,1749677449136,-250.64495419,0.00019313,2]
[365444887,1749677449145,-219.23291504,0.00019314,2]
[365444888,1749677449155,-570.58682102,0.00019337,2]
[365444889,1749677449164,-1519.07,0.00019338,2]
[365444890,1749677449174,-175.024,0.00019338,2]
[365444891,1749677449184,-500.0,0.00019341,2]
[365444892,1749677449193,-500.0,0.00019341,2]
[365444893,1749677449203,-838.92,0.00019341,2]
[365444894,1749677449212,-470.0,0.00019342,2]
[365444895,1749677449222,-490.0,0.00019342,2]
[365444896,1749677449231,-470.0,0.00019342,2]
[365444897,1749677449241,-460.0,0.00019342,2]
[365444898,1749677449250,-490.0,0.00019342,2]
[365444899,1749677449261,-490.0,0.00019342,2]
[365444900,1749677449270,-454.82789052,0.00019342,2]
[365444901,1749677449280,-605.3,0.00019342,2]
[365444902,1749677449290,-490.0,0.00019342,2]
[365444903,1749677449299,-490.0,0.00019342,2]
[365444904,1749677449309,-204.17,0.00019342,2]
[365444905,1749677449319,-364.21,0.00019342,2]
[365444906,1749677449328,-490.0,0.00019342,2]
[365444907,1749677449338,-323.66,0.00019342,2]
[365444908,1749677449347,-383.33,0.00019342,2]
[365444909,1749677449357,-229.32,0.00019342,2]
[365444910,1749677449366,-286.84,0.00019342,2]
[365444911,1749677449377,-611.57,0.00019342,2]
[365444912,1749677449386,-293.3923078,0.00019342,2]
[365444913,1749677449396,-160.92,0.00019342,2]
[365444914,1749677449406,-469.97644543,0.00019342,2]
[365444915,1749677449416,-277.63,0.00019342,2]
[365444916,1749677449425,-537.12,0.00019342,2]
[365444917,1749677449435,-490.0,0.00019342,2]
[365444918,1749677449444,-390.61,0.00019342,2]
[365444919,1749677449454,-520.48,0.00019342,2]
[365444920,1749677449464,-330.83,0.00019342,2]
[365444921,1749677449474,-638.89,0.00019342,2]
[365444922,1749677449483,-490.0,0.00019342,2]
[365444923,1749677449493,-490.0,0.00019342,2]
[365444924,1749677449503,-507.91,0.00019342,2]
[365444925,1749677449514,-470.0,0.00019342,2]
[365444926,1749677449524,-470.0,0.00019342,2]
[365444927,1749677449534,-470.0,0.00019342,2]
[365444928,1749677449544,-490.0,0.00019342,2]
[365444929,1749677449554,-377.27,0.00019342,2]
[365444930,1749677449564,-470.0,0.00019342,2]
[365444931,1749677449573,-490.0,0.00019342,2]
[365444932,1749677449583,-599.07,0.00019342,2]
[365444933,1749677449592,-490.0,0.00019342,2]
[365444934,1749677449602,-490.0,0.00019342,2]
[365444935,1749677449613,-470.0,0.00019342,2]
[365444936,1749677449623,-589.25,0.00019342,2]
[365444937,1749677449634,-246.21,0.00019342,2]
[365444938,1749677449644,-490.0,0.00019342,2]
[365444939,1749677449654,-460.0,0.00019342,2]
[365444940,1749677449664,-490.0,0.00019342,2]
[365444941,1749677449675,-460.0,0.00019342,2]
[365444942,1749677449685,-490.0,0.00019342,2]
[365444943,1749677449695,-490.0,0.00019342,2]
[365444944,1749677449705,-460.0,0.00019342,2]
[365444945,1749677449714,-490.0,0.00019342,2]
[365444946,1749677449724,-490.0,0.00019342,2]
[365444947,1749677449733,-490.0,0.00019342,2]
[365444948,1749677449743,-563.71,0.00019342,2]
[365444949,1749677449753,-490.0,0.00019342,2]
[365444950,1749677449765,-270.06,0.00019342,2]
[365444951,1749677449774,-490.0,0.00019342,2]
[365444952,1749677449784,-576.92,0.00019342,2]
[365444953,1749677449794,-490.0,0.00019342,2]
[365444954,1749677449804,-387.76,0.00019342,2]
[365444955,1749677449813,-490.0,0.00019342,2]
[365444956,1749677449824,-490.0,0.00019342,2]
[365444957,1749677449833,-633.67,0.00019342,2]
[365444958,1749677449843,-490.0,0.00019342,2]
[365444959,1749677449853,-490.0,0.00019342,2]
[365444960,1749677449862,-548.27,0.00019342,2]
[365444961,1749677449872,-698.12,0.00019342,2]
[365444962,1749677449882,-490.0,0.00019342,2]
[365444963,1749677449892,-214.4316932,0.00019342,2]
[365444964,1749677449901,-480.0,0.00019342,2]
[365444965,1749677449911,-490.0,0.00019342,2]
[365444966,1749677449920,-490.0,0.00019342,2]
[365444967,1749677449929,-490.0,0.00019342,2]
[365444968,1749677449940,-450.0,0.00019342,2]
[365444969,1749677449949,-402.61,0.00019342,2]
[365444970,1749677449959,-490.0,0.00019342,2]
[365444971,1749677449968,-490.0,0.00019342,2]
[365444972,1749677449977,-908.48,0.00019342,2]
[365444973,1749677449987,-490.0,0.00019342,2]
[365444974,1749677449997,-490.0,0.00019342,2]
[365444975,1749677450006,-490.0,0.00019342,2]
[365444976,1749677450021,-470.0,0.00019342,2]
[365444977,1749677450030,-490.0,0.00019342,2]
[365444978,1749677450040,-543.65775273,0.00019342,2]
[365444979,1749677450050,-480.0,0.00019342,2]
[365444980,1749677450059,-490.0,0.00019342,2]
[365444981,1749677450070,-450.0,0.00019342,2]
[365444982,1749677450079,-490.0,0.00019342,2]
[365444983,1749677450089,-490.0,0.00019342,2]
[365444984,1749677450099,-490.0,0.00019342,2]
[365444985,1749677450109,-490.0,0.00019342,2]
[365444986,1749677450118,-490.0,0.00019342,2]
[365444987,1749677450128,-490.0,0.00019342,2]
[365444988,1749677450137,-490.0,0.00019342,2]
[365444989,1749677450147,-490.0,0.00019342,2]
[365444990,1749677450156,-490.0,0.00019342,2]
[365444991,1749677450166,-490.0,0.00019342,2]
[365444992,1749677450175,-561.52,0.00019342,2]
[365444993,1749677450185,-490.0,0.00019342,2]
[365444994,1749677450195,-490.0,0.00019342,2]
[365444995,1749677450204,-490.0,0.00019342,2]
[365444996,1749677450214,-490.0,0.00019342,2]
[365444997,1749677450224,-490.0,0.00019342,2]
[365444998,1749677450234,-460.0,0.00019342,2]
[365444999,1749677450243,-583.58,0.00019342,2]
[365445000,1749677450253,-483.28,0.00019342,2]
[365445001,1749677450264,-490.0,0.00019342,2]
[365445002,1749677450274,-490.0,0.00019342,2]
[365445003,1749677450283,-612.24,0.00019342,2]
[365445004,1749677450293,-490.0,0.00019342,2]
[365445005,1749677450303,-490.0,0.00019342,2]
[365445006,1749677450313,-490.0,0.00019342,2]
[365445007,1749677450323,-500.9,0.00019342,2]
[365445008,1749677450333,-490.0,0.00019342,2]
[365445009,1749677450343,-490.0,0.00019342,2]
[365445010,1749677450353,-490.0,0.00019342,2]
[365445011,1749677450363,-490.0,0.00019342,2]
[365445012,1749677450373,-490.0,0.00019342,2]
[365445013,1749677450382,-312.42,0.00019342,2]
[365445014,1749677450391,-490.0,0.00019342,2]
[365445015,1749677450401,-492.5,0.00019342,2]
[365445016,1749677450411,-490.0,0.00019342,2]
[365445017,1749677450420,-542.76976017,0.00019342,2]
[365445018,1749677450430,-490.0,0.00019342,2]
[365445019,1749677450440,-490.0,0.00019342,2]
[365445020,1749677450450,-179.73,0.00019342,2]
[365445021,1749677450460,-490.0,0.00019342,2]
[365445022,1749677450470,-349.96,0.00019342,2]
[365445023,1749677450479,-450.0,0.00019342,2]
[365445024,1749677450489,-490.0,0.00019342,2]
[365445025,1749677450499,-490.0,0.00019342,2]
[365445026,1749677450509,-423.47,0.00019342,2]
[365445027,1749677450520,-460.0,0.00019342,2]
[365445028,1749677450530,-490.0,0.00019342,2]
[365445029,1749677450540,-490.0,0.00019342,2]
[365445030,1749677450550,-490.0,0.00019342,2]
[365445031,1749677450560,-480.0,0.00019342,2]
[365445032,1749677450570,-373.74196941,0.00019342,2]
[365445033,1749677450579,-470.0,0.00019342,2]
[365445034,1749677450589,-649.13,0.00019342,2]
[365445035,1749677450599,-490.0,0.00019342,2]
[365445036,1749677450608,-470.0,0.00019342,2]
[365445037,1749677450618,-495.84,0.00019342,2]
[365445038,1749677450628,-490.0,0.00019342,2]
[365445039,1749677450638,-460.0,0.00019342,2]
[365445040,1749677450647,-490.0,0.00019342,2]
[365445041,1749677450657,-490.0,0.00019342,2]
[365445042,1749677450666,-490.0,0.00019342,2]
[365445043,1749677450676,-490.0,0.00019342,2]
[365445044,1749677450686,-551.73,0.00019342,2]
[365445045,1749677450696,-490.0,0.00019342,2]
[365445046,1749677450706,-460.0,0.00019342,2]
[365445047,1749677450940,-761.82,0.00019342,2]
[365445048,1749677450958,-490.0,0.00019342,2]
[365445049,1749677450968,-480.0,0.00019342,2]
[365445050,1749677450977,-453.43,0.00019342,2]
[365445051,1749677450987,-806.76,0.00019342,2]
[365445052,1749677450996,-490.0,0.00019342,2]
[365445053,1749677451005,-490.0,0.00019342,2]
[365445054,1749677451018,-1831.2,0.00019342,2]
[365445055,1749677451028,-507.59,0.00019342,2]
[365445056,1749677451037,-5175.19,0.00019342,2]
[365445057,1749677451046,-668.79,0.00019342,2]
[365445058,1749677451056,-151.76,0.00019342,2]
[365445059,1749677451065,-490.0,0.00019342,2]
[365445060,1749677451075,-480.0,0.00019342,2]
[365445061,1749677451085,-490.0,0.00019342,2]
[365445062,1749677451095,-615.01,0.00019342,2]
[365445063,1749677451105,-968.82,0.00019342,2]
[365445064,1749677451115,-1173.821981,0.00019342,2]
[365445065,1749677451124,-542.51,0.00019342,2]
[365445066,1749677451134,-490.0,0.00019342,2]
[365445067,1749677451143,-479.65225239,0.00019342,2]
[365445068,1749677451152,-165.25,0.00019342,2]
[365445069,1749677451161,-397.45,0.00019342,2]
[365445070,1749677451171,-490.0,0.00019342,2]
[365445071,1749677451180,-490.0,0.00019342,2]
[365445072,1749677451189,-615.31,0.00019342,2]
[365445073,1749677451198,-490.0,0.00019342,2]
[365445074,1749677451207,-460.0,0.00019342,2]
[365445075,1749677451217,-490.0,0.00019342,2]
[365445076,1749677451226,-490.0,0.00019342,2]
[365445077,1749677451235,-211.66,0.00019342,2]
[365445078,1749677451244,-1426.18,0.00019342,2]
[365445079,1749677451253,-1077.4,0.00019342,2]
[365445080,1749677451264,-490.0,0.00019342,2]
[365445081,1749677451273,-490.0,0.00019342,2]
[365445082,1749677451283,-4456.04,0.00019342,2]
[365445083,1749677451292,-490.0,0.00019342,2]
[365445084,1749677451302,-840.78,0.00019342,2]
[365445085,1749677451311,-998.74,0.00019342,2]
[365445086,1749677451321,-490.0,0.00019342,2]
[365445087,1749677451330,-490.0,0.00019342,2]
[365445088,1749677451339,-2608.62,0.00019342,2]
[365445089,1749677451349,-1002.96,0.00019342,2]
[365445090,1749677451358,-153.03,0.00019342,2]
[365445091,1749677451368,-490.0,0.00019342,2]
[365445092,1749677451377,-241.64371762,0.00019342,2]
[365445093,1749677451387,-490.0,0.00019342,2]
[365445094,1749677451396,-490.0,0.00019342,2]
[365445095,1749677451406,-490.0,0.00019342,2]
[365445096,1749677451416,-490.0,0.00019342,2]
[365445097,1749677451425,-490.0,0.00019342,2]
[365445098,1749677451435,-726.31,0.00019342,2]
[365445099,1749677451444,-490.0,0.00019342,2]
[365445100,1749677451454,-490.0,0.00019342,2]
[365445101,1749677451463,-250.67,0.00019342,2]
[365445102,1749677451473,-490.0,0.00019342,2]
[365445103,1749677451483,-577.84,0.00019342,2]
[365445104,1749677451493,-8820.82,0.00019342,2]
[365445105,1749677451502,-567.12,0.00019342,2]
[365445106,1749677451514,-490.0,0.00019342,2]
[365445107,1749677451524,-490.0,0.00019342,2]
[365445108,1749677451534,-470.0,0.00019342,2]
[365445109,1749677451543,-643.03,0.00019342,2]
[365445110,1749677451553,-811.67,0.00019342,2]
[365445111,1749677451562,-480.0,0.00019342,2]
[365445112,1749677451572,-490.0,0.00019342,2]
[365445113,1749677451581,-544.17,0.00019342,2]
[365445114,1749677451590,-995.29,0.00019342,2]
[365445115,1749677451600,-490.0,0.00019342,2]
[365445116,1749677451610,-450.0,0.00019342,2]
[365445117,1749677451619,-612.34,0.00019342,2]
[365445118,1749677451628,-490.0,0.00019342,2]
[365445119,1749677451638,-630.89,0.00019342,2]
[365445120,1749677451648,-496.06,0.00019342,2]
[365445121,1749677451657,-490.0,0.00019342,2]
[365445122,1749677451667,-843.82,0.00019342,2]
[365445123,1749677451675,-490.0,0.00019342,2]
[365445124,1749677451685,-490.0,0.00019342,2]
[365445125,1749677451694,-470.0,0.00019342,2]
[365445126,1749677451704,-2024.21,0.00019342,2]
[365445127,1749677451714,-542.76,0.00019342,2]
[365445128,1749677451723,-606.78,0.00019342,2]
[365445129,1749677451732,-490.0,0.00019342,2]
[365445130,1749677451742,-490.0,0.00019342,2]
[365445131,1749677451751,-490.0,0.00019342,2]
[365445132,1749677451761,-490.0,0.00019342,2]
[365445133,1749677451772,-930.52,0.00019342,2]
[365445134,1749677451782,-490.0,0.00019342,2]
[365445135,1749677451791,-490.0,0.00019342,2]
[365445136,1749677451800,-490.0,0.00019342,2]
[365445137,1749677451810,-1071.87,0.00019342,2]
[365445138,1749677451819,-480.0,0.00019342,2]
[365445139,1749677451828,-480.0,0.00019342,2]
[365445140,1749677451838,-561.44,0.00019342,2]
[365445141,1749677451848,-490.0,0.00019342,2]
[365445142,1749677451858,-993.34,0.00019342,2]
[365445143,1749677451867,-872.06,0.00019342,2]
[365445144,1749677451877,-480.0,0.00019342,2]
[365445145,1749677451887,-910.1,0.00019342,2]
[365445146,1749677451896,-480.67,0.00019342,2]
[365445147,1749677451906,-490.0,0.00019342,2]
[365445148,1749677451915,-490.0,0.00019342,2]
[365445149,1749677451925,-490.0,0.00019342,2]
[365445150,1749677451934,-570.71,0.00019342,2]
[365445151,1749677451943,-490.0,0.00019342,2]
[365445152,1749677451953,-490.0,0.00019342,2]
[365445153,1749677451962,-490.0,0.00019342,2]
[365445154,1749677451971,-490.0,0.00019342,2]
[365445155,1749677451981,-490.0,0.00019342,2]
[365445156,1749677451990,-250.72,0.00019342,2]
[365445157,1749677451999,-490.0,0.00019342,2]
[365445158,1749677452009,-490.0,0.00019342,2]
[365445159,1749677452023,-497.89,0.00019342,2]
[365445160,1749677452033,-490.0,0.00019342,2]
[365445161,1749677452043,-490.0,0.00019342,2]
[365445162,1749677452052,-744.78,0.00019342,2]
[365445163,1749677452062,-578.48,0.00019342,2]
[365445164,1749677452072,-490.0,0.00019342,2]
[365445165,1749677452081,-231.87988668,0.00019342,2]
[365445166,1749677452091,-916.62,0.00019342,2]
[365445167,1749677452101,-490.0,0.00019342,2]
[365445168,1749677452112,-490.0,0.00019342,2]
[365445169,1749677452121,-1107.62,0.00019342,2]
[365445170,1749677452130,-490.0,0.00019342,2]
[365445171,1749677452140,-490.0,0.00019342,2]
[365445172,1749677452149,-490.0,0.00019342,2]
[365445173,1749677452158,-490.0,0.00019342,2]
[365445174,1749677452167,-490.0,0.00019342,2]
[365445175,1749677452177,-849.55,0.00019342,2]
[365445176,1749677452187,-726.95,0.00019342,2]
[365445177,1749677452195,-2569.09,0.00019342,2]
[365445178,1749677452205,-490.0,0.00019342,2]
[365445179,1749677452214,-490.0,0.00019342,2]
[365445180,1749677452223,-490.0,0.00019342,2]
[365445181,1749677452233,-490.0,0.00019342,2]
[365445182,1749677452242,-490.0,0.00019342,2]
[365445183,1749677452251,-480.0,0.00019342,2]
[365445184,1749677452261,-490.0,0.00019342,2]
[365445185,1749677452272,-1303.77,0.00019342,2]
[365445186,1749677452281,-593.47,0.00019342,2]
[365445187,1749677452291,-490.0,0.00019342,2]
[365445188,1749677452300,-490.0,0.00019342,2]
[365445189,1749677452309,-1000.0,0.00019342,2]
[365445190,1749677452318,-1091.54,0.00019342,2]
[365445191,1749677452327,-450.0,0.00019342,2]
[365445192,1749677452337,-2046.8,0.00019342,2]
[365445193,1749677452346,-2165.5,0.00019342,2]
[365445194,1749677452356,-490.0,0.00019342,2]
[365445195,1749677452366,-942.57,0.00019342,2]
[365445196,1749677452375,-490.0,0.00019342,2]
[365445197,1749677452385,-490.0,0.00019342,2]
[365445198,1749677452395,-490.0,0.00019342,2]
[365445199,1749677452404,-490.0,0.00019342,2]
[365445200,1749677452414,-2137.25,0.00019342,2]
[365445201,1749677452423,-290.0,0.00019342,2]
[365445202,1749677452433,-679.58,0.00019342,2]
[365445203,1749677452442,-490.0,0.00019342,2]
[365445204,1749677452452,-467.46,0.00019342,2]
[365445205,1749677452461,-1351.51,0.00019342,2]
[365445206,1749677452470,-490.0,0.00019342,2]
[365445207,1749677452480,-490.0,0.00019342,2]
[365445208,1749677452489,-490.0,0.00019342,2]
[365445209,1749677452499,-490.0,0.00019342,2]
[365445210,1749677452508,-1949.11,0.00019342,2]
[365445211,1749677452518,-490.0,0.00019342,2]
[365445212,1749677452528,-1430.03424749,0.00019342,2]
[365445213,1749677452877,-847.955,0.00019342,2]
[365445214,1749677453202,-490.0,0.00019178,2]
[365445215,1749677453211,-490.0,0.00019178,2]
[365445216,1749677453220,-480.0,0.00019178,2]
[365445217,1749677453229,-490.0,0.00019178,2]
[365445218,1749677453238,-523.88075251,0.00019342,2]
[365445219,1749677453247,-490.0,0.00019342,2]
[365445220,1749677453257,-513.31,0.00019342,2]
[365445221,1749677453267,-709.11,0.00019342,2]
[365445222,1749677453276,-490.0,0.00019342,2]
[365445223,1749677453285,-5478.9,0.00019342,2]
[365445224,1749677453295,-622.62,0.00019342,2]
[365445225,1749677453304,-490.0,0.00019342,2]
[365445226,1749677453314,-562.04,0.00019342,2]
[365445227,1749677453323,-490.0,0.00019342,2]
[365445228,1749677453333,-5122.71,0.00019342,2]
[365445229,1749677453342,-490.0,0.00019342,2]
[365445230,1749677453352,-490.0,0.00019342,2]
[365445231,1749677453361,-490.0,0.00019342,2]
[365445232,1749677453371,-490.0,0.00019342,2]
[365445233,1749677453381,-751.62578441,0.00019342,2]
[365445234,1749677453391,-603.01,0.00019342,2]
[365445235,1749677453400,-490.0,0.00019342,2]
[365445236,1749677453409,-559.93,0.00019342,2]
[365445237,1749677453418,-490.0,0.00019342,2]
[365445238,1749677453427,-490.0,0.00019342,2]
[365445239,1749677453437,-490.0,0.00019342,2]
[365445240,1749677453446,-490.0,0.00019342,2]
[365445241,1749677453456,-490.0,0.00019342,2]
[365445242,1749677453465,-1798.59,0.00019342,2]
[365445243,1749677453475,-871.01,0.00019342,2]
[365445244,1749677453484,-624.62872089,0.00019342,2]
[365445245,1749677453493,-490.0,0.00019342,2]
[365445246,1749677453502,-490.0,0.00019342,2]
[365445247,1749677453511,-490.0,0.00019342,2]
[365445248,1749677453522,-620.38,0.00019342,2]
[365445249,1749677453532,-490.0,0.00019342,2]
[365445250,1749677453541,-509.17595596,0.00019342,2]
[365445251,1749677453550,-470.0,0.00019342,2]
[365445252,1749677453559,-470.0,0.00019342,2]
[365445253,1749677453568,-490.0,0.00019342,2]
[365445254,1749677453578,-857.78,0.00019342,2]
[365445255,1749677453587,-691.34,0.00019342,2]
[365445256,1749677453595,-490.0,0.00019342,2]
[365445257,1749677453605,-480.0,0.00019342,2]
[365445258,1749677453614,-490.0,0.00019342,2]
[365445259,1749677453623,-480.0,0.00019342,2]
[365445260,1749677453633,-490.0,0.00019342,2]
[365445261,1749677453642,-1245.409546,0.00019342,2]
[365445262,1749677453652,-490.0,0.00019342,2]
[365445263,1749677453661,-490.0,0.00019342,2]